[Event "CZE-ch Youth B16 2022"]
[Site "Luhacovice"]
[Date "2022.03.13"]
[Round "2.11"]
[White "Vilimek, Vit"]
[Black "Simek, Viktor"]
[Result "1-0"]
[ECO "C45"]
[WhiteElo "1794"]
[BlackElo "1527"]
[Annotator "NA"]
[PlyCount "71"]
[EventDate "2022.03.12"]
[EventType "swiss"]
[EventCountry "CZE"]
[SourceTitle "playchess.com"]
[Source "ChessBase"]
[SourceQuality "1"]
[TimeControl "40/5400+30:1800+30"]

1. e4 {[%emt 0:00:03]} e5 {[%emt 0:00:10]} 2. Nf3 {[%emt 0:00:03]} Nc6 {[%emt 0:00:23]} 3. d4 {[%emt 0:00:07]} exd4 {[%emt 0:00:06]} 4. Nxd4 {[%emt 0:00:05]} Bc5 {[%emt 0:00:30]} 5. Nb3 {[%emt 0:00:09]} Bb6 {[%emt 0:00:11]} 6. Nc3 {[%emt 0:00:05]} d6 {[%emt 0:02:11]} 7. Qe2 {[%emt 0:00:09]} Be6 {[%emt 0:03:53]} 8. f3 {[%emt 0:02:05]} Nf6 {[%emt 0:04:26]} 9. Bg5 {[%emt 0:01:19]} h6 {[%emt 0:02:12]} 10. Bh4 {[%emt 0:00:15]} g5 {[%emt 0:03:59]} 11. Bf2 {[%emt 0:04:41]} Qd7 {[%emt 0:09:17]} 12. O-O-O {[%emt 0:05:31]} O-O-O {[%emt 0:01:20]} 13. Na4 {[%emt 0:14:51]} Nb4 {[%emt 0:13:17]} 14. Nxb6+ {[%emt 0:02:28]} axb6 {[%emt 0:00:26]} 15. a3 {[%emt 0:13:10]} Nc6 {[%emt 0:08:26]} 16. Qd2 {[%emt 0:06:04]} g4 {[%emt 0:08:39]} 17. Bb5 {[%emt 0:06:01]} Bxb3 {[%emt 0:04:49]} 18. cxb3 {[%emt 0:00:18]} Qe6 {[%emt 0:01:56]} 19. Qc3 {[%emt 0:09:12]} gxf3 {[%emt 0:08:10]} 20. gxf3 {[%emt 0:00:49]} Rhg8 {[%emt 0:04:41]} 21. Bxc6 {[%emt 0:17:09]} bxc6 {[%emt 0:00:04]} 22. Qxc6 {[%emt 0:01:11]} Qxb3 {[%emt 0:00:29]} 23. e5 {[%emt 0:02:08]} Ne8 {[%emt 0:03:03]} 24. Bh4 {[%emt 0:10:20]} Rg2 {[%emt 0:00:34]} 25. Qa8+ {[%emt 0:02:41]} Kd7 {[%emt 0:01:07]} 26. e6+ {[%emt 0:01:11]} fxe6 {[%emt 0:00:41]} 27. Qxd8+ {[%emt 0:01:06]} Kc6 {[%emt 0:00:05]} 28. Qxe8+ {[%emt 0:00:27]} Kb7 {[%emt 0:00:14]} 29. Rd2 {[%emt 0:00:46]} Rxd2 {[%emt 0:04:35]} 30. Kxd2 {[%emt 0:00:01]} Qxb2+ {[%emt 0:00:16]} 31. Ke3 {[%emt 0:00:11]} Qc3+ {[%emt 0:00:48]} 32. Kf2 {[%emt 0:00:36]} Qb2+ {[%emt 0:01:25]} 33. Kg3 {[%emt 0:00:34]} Qe5+ {[%emt 0:01:05]} 34. Kh3 {[%emt 0:00:42]} Qf4 {[%emt 0:04:33]} 35. Rf1 {[%emt 0:00:44]} Qc4 {[%emt 0:03:22]} 36. Rf2 {[%emt 0:00:15]} 1-0

[Event "CZE-ch Youth B16 2022"]
[Site "Luhacovice"]
[Date "2022.03.13"]
[Round "2.12"]
[White "Trojan, Matyas"]
[Black "Mrazek, Roman"]
[Result "1/2-1/2"]
[ECO "B44"]
[WhiteElo "1582"]
[BlackElo "1820"]
[Annotator "NA"]
[PlyCount "83"]
[EventDate "2022.03.12"]
[EventType "swiss"]
[EventCountry "CZE"]
[SourceTitle "playchess.com"]
[Source "ChessBase"]
[SourceQuality "1"]
[TimeControl "40/5400+30:1800+30"]

1. e4 c5 2. Nf3 e6 3. d4 cxd4 4. Nxd4 Nc6 5. a3 a6 6. Nc3 Qc7 7. Nxc6 (7. Be3 $14) 7... bxc6 8. g3 Nf6 9. Bg2 Be7 10. O-O O-O 11. Kh1 d5 $15 12. f4 Rd8 13. e5 Nd7 14. Be3 Bb7 15. b4 c5 16. bxc5 Bxc5 17. Bd4 Rac8 18. Ne2 a5 19. c3 Ba6 20. Rf3 Rb8 21. Nc1 Rdc8 22. Nb3 Be7 23. a4 Bc4 24. Rb1 Rb7 25. Nd2 Rcb8 26. Rxb7 Rxb7 27. Nxc4 Qxc4 28. Bf1 Qa2 29. Bb5 Nc5 30. Rf2 Qb3 31. Qxb3 Nxb3 32. Rc2 Rc7 33. Bb6 Rc8 34. Kg2 Bb4 35. c4 d4 36. Rb2 Nc5 37. Bxc5 Rxc5 38. Kf3 d3 39. Rb3 d2 40. Rd3 h5 41. Ke2 Kh7 42. Rd7 1/2-1/2

[Event "CZE-ch Youth B16 2022"]
[Site "Luhacovice"]
[Date "2022.03.14"]
[Round "3.1"]
[White "Paseka, Matyas"]
[Black "Jirasko, Miroslav"]
[Result "0-1"]
[ECO "B40"]
[WhiteElo "2058"]
[BlackElo "1933"]
[Annotator "ChessBase"]
[PlyCount "118"]
[EventDate "2022.03.12"]
[EventType "swiss"]
[EventCountry "CZE"]
[SourceTitle "playchess.com"]
[Source "ChessBase"]
[SourceQuality "1"]
[TimeControl "40/5400+30:1800+30"]

1. e4 c5 2. Nf3 e6 3. d4 cxd4 4. Nxd4 Nf6 5. Nc3 Nc6 6. Ndb5 Bc5 7. Bf4 O-O 8. Bc7 Qe7 9. Bd6 Bxd6 10. Qxd6 Qd8 11. O-O-O a6 12. Nd4 Ne7 13. Bd3 b5 14. Nb3 Ne8 15. Qg3 b4 16. Ne2 d6 17. e5 Nd5 18. Nf4 Bb7 19. Be4 Nxf4 20. Qxf4 Bxe4 21. Qxe4 Qb8 22. Na5 d5 23. Qd4 Qb5 24. Nb3 Rc8 25. Qd3 Qb6 26. Qe3 Qb7 27. h4 Nc7 28. h5 Nb5 29. h6 g6 30. Rd2 Rc7 31. Qg5 f5 32. exf6 Rcf7 33. Qe5 Rxf6 34. Re1 Qc7 35. f3 Qxe5 36. Rxe5 Rc8 37. Nd4 Nxd4 38. Rxd4 a5 39. Kd2 Kf7 40. f4 Rf5 41. g4 Rxe5 42. fxe5 g5 43. b3 Kg6 44. a3 bxa3 45. Ra4 Rc5 46. Rxa3 Kxh6 47. b4 axb4 48. Ra6 Rc4 49. Rxe6+ Kg7 50. Re7+ Kg6 51. Re6+ Kf7 52. Rf6+ Ke7 53. Rd6 Rxg4 54. Rxd5 Ke6 55. Rb5 h5 56. Ke3 h4 57. Kf3 Rf4+ 58. Kg2 g4 59. Kh2 Rc4 0-1

[Event "CZE-ch Youth B16 2022"]
[Site "Luhacovice"]
[Date "2022.03.14"]
[Round "3.2"]
[White "Smolik, Jachym"]
[Black "Kubiczek, Michal"]
[Result "1-0"]
[ECO "A59"]
[WhiteElo "2277"]
[BlackElo "1720"]
[Annotator "ChessBase"]
[PlyCount "95"]
[EventDate "2022.03.12"]
[EventType "swiss"]
[EventCountry "CZE"]
[SourceTitle "playchess.com"]
[Source "ChessBase"]
[SourceQuality "1"]
[TimeControl "40/5400+30:1800+30"]

1. d4 {[%emt 0:00:01]} Nf6 {[%emt 0:00:09]} 2. c4 {[%emt 0:00:04]} c5 {[%emt 0:00:29]} 3. d5 {[%emt 0:00:06]} b5 {[%emt 0:00:04]} 4. cxb5 {[%emt 0:00:04]} a6 {[%emt 0:00:04]} 5. bxa6 {[%emt 0:00:05]} g6 {[%emt 0:00:44]} 6. Nc3 {[%emt 0:00:05]} Bxa6 {[%emt 0:00:05]} 7. e4 {[%emt 0:00:08]} Bxf1 {[%emt 0:00:05]} 8. Kxf1 {[%emt 0:00:05]} d6 {[%emt 0:00:15]} 9. g3 {[%emt 0:00:11]} Bg7 {[%emt 0:00:10]} 10. Kg2 {[%emt 0:00:11]} O-O {[%emt 0:00:11]} 11. Nf3 {[%emt 0:00:08]} Nbd7 {[%emt 0:00:30]} 12. a4 {[%emt 0:02:04]} Qb6 {[%emt 0:08:13]} 13. Qc2 {[%emt 0:07:40]} Rfb8 {[%emt 0:05:46]} 14. Nb5 {[%emt 0:01:14]} Ne8 {[%emt 0:03:31]} 15. Bd2 {[%emt 0:03:07]} Nc7 {[%emt 0:04:03]} 16. Nxc7 {[%emt 0:00:15]} Qxc7 {[%emt 0:00:02]} 17. Rab1 {[%emt 0:01:05]} Qa7 {[%emt 0:08:03]} 18. b3 {[%emt 0:02:23]} Rb6 {[%emt 0:01:20]} 19. Bc3 {[%emt 0:33:19]} Qb7 {[%emt 0:08:25]} 20. Bxg7 {[%emt 0:01:38]} Kxg7 {[%emt 0:00:01]} 21. Nd2 {[%emt 0:00:54]} Rb4 {[%emt 0:02:37]} 22. h4 {[%emt 0:10:15]} h5 {[%emt 0:03:55]} 23. Nc4 {[%emt 0:01:32]} Nb6 {[%emt 0:03:59]} 24. Na3 {[%emt 0:05:52]} Rb8 {[%emt 0:01:28]} 25. Rhe1 {[%emt 0:02:03]} Kh7 {[%emt 0:09:00]} 26. Qc3 {[%emt 0:13:54]} Nd7 {[%emt 0:07:48]} 27. Nb5 {[%emt 0:00:12]} Nf6 {[%emt 0:01:24]} 28. f3 {[%emt 0:03:27]} Ne8 {[%emt 0:02:13]} 29. Re3 {[%emt 0:02:06]} Nc7 {[%emt 0:01:00]} 30. Na3 {[%emt 0:01:58]} Qa7 {[%emt 0:03:12]} 31. Re2 {[%emt 0:01:55]} Na8 {[%emt 0:02:35]} 32. Reb2 {[%emt 0:00:21]} Nb6 {[%emt 0:00:43]} 33. Nc2 {[%emt 0:01:38]} Nd7 {[%emt 0:06:43]} 34. Nxb4 {[%emt 0:00:02]} Rxb4 {[%emt 0:00:07]} 35. Re1 {[%emt 0:00:42]} Qb7 {[%emt 0:01:17]} 36. Ree2 {[%emt 0:01:09]} Ne5 {[%emt 0:01:26]} 37. Red2 {[%emt 0:00:49]} Nd7 {[%emt 0:01:57]} 38. Qc2 {[%emt 0:00:25]} Nf6 {[%emt 0:01:14]} 39. Qb1 {[%emt 0:01:02]} Nd7 {[%emt 0:02:31]} 40. Qc2 {[%emt 0:02:59]} Nf6 {[%emt 0:00:46]} 41. Qc3 {[%emt 0:31:52]} Nd7 {[%emt 0:34:42]} 42. Ra2 {[%emt 0:00:00]} Ne5 {[%emt 0:00:00]} 43. a5 {[%emt 0:00:00]} Rxb3 {[%emt 0:00:00]} 44. a6 {[%emt 0:00:00]} Qb6 {[%emt 0:00:00]} 45. Rdb2 {[%emt 0:00:00]} c4 {[%emt 0:00:00]} 46. a7 {[%emt 0:00:00]} Nxf3 {[%emt 0:00:00]} 47. Rxb3 {[%emt 0:00:00]} cxb3 {[%emt 0:00:00]} 48. Kxf3 {[%emt 0:00:00]} 1-0

[Event "CZE-ch Youth B16 2022"]
[Site "Luhacovice"]
[Date "2022.03.14"]
[Round "3.3"]
[White "Bezdek, Tomas"]
[Black "Soucek, Petr"]
[Result "0-1"]
[ECO "B10"]
[WhiteElo "1855"]
[BlackElo "2194"]
[Annotator "NA"]
[PlyCount "70"]
[EventDate "2022.03.12"]
[EventType "swiss"]
[EventCountry "CZE"]
[SourceTitle "playchess.com"]
[Source "ChessBase"]
[SourceQuality "1"]
[TimeControl "40/5400+30:1800+30"]

1. e4 {[%emt 0:00:02]} c6 {[%emt 0:00:15]} 2. Ne2 {[%emt 0:00:13]} d5 {[%emt 0:00:10]} 3. e5 {[%emt 0:00:13]} d4 {[%emt 0:00:31]} 4. Nf4 {[%emt 0:09:36]} e6 {[%emt 0:04:56]} 5. c3 {[%emt 0:06:07]} c5 {[%emt 0:00:11]} 6. Na3 {[%emt 0:02:05]} Nc6 {[%emt 0:01:14]} 7. Nc4 {[%emt 0:06:48]} (7. Nd3 $11) 7... g5 {[%emt 0:19:43]} 8. Nh5 {[%emt 0:16:26]} Qd5 {[%emt 0:11:48]} 9. Qf3 {[%emt 0:07:10]} Bd7 {[%emt 0:03:08]} 10. Qg3 {[%emt 0:14:17]} b5 {[%emt 0:22:55]} 11. Nd6+ {[%emt 0:06:02]} Bxd6 {[%emt 0:00:06]} 12. exd6 {[%emt 0:00:06]} Qe5+ {[%emt 0:09:08]} 13. Qxe5 {[%emt 0:00:24]} Nxe5 {[%emt 0:00:08]} 14. d3 {[%emt 0:00:54]} f6 $16 {[%emt 0:00:35]} 15. f4 {[%emt 0:03:09]} gxf4 {[%emt 0:00:18]} 16. Nxf4 {[%emt 0:05:40]} Ng6 {[%emt 0:06:40]} 17. Be2 {[%emt 0:03:40]} Nxf4 {[%emt 0:01:01]} 18. Bxf4 {[%emt 0:00:50]} e5 {[%emt 0:00:29]} 19. Bg3 {[%emt 0:00:10]} Nh6 {[%emt 0:02:34]} 20. Bh5+ {[%emt 0:02:10]} Kf8 {[%emt 0:01:25]} 21. O-O {[%emt 0:01:09]} Kg7 {[%emt 0:00:11]} 22. cxd4 {[%emt 0:01:44]} cxd4 {[%emt 0:00:09]} 23. Rac1 {[%emt 0:01:50]} Rac8 {[%emt 0:00:06]} 24. Rc7 {[%emt 0:05:49]} Rxc7 {[%emt 0:00:07]} 25. dxc7 {[%emt 0:00:01]} Rc8 {[%emt 0:09:49]} 26. Rc1 {[%emt 0:01:14]} Nf5 {[%emt 0:01:35]} 27. Be1 {[%emt 0:01:05]} Ne7 {[%emt 0:03:49]} 28. Bf3 {[%emt 0:04:12]} Bc6 {[%emt 0:00:43]} 29. Rxc6 {[%emt 0:00:56]} Nxc6 {[%emt 0:00:04]} 30. Bxc6 {[%emt 0:00:02]} Rxc7 {[%emt 0:00:05]} 31. Bxb5 {[%emt 0:00:14]} Rc2 {[%emt 0:00:06]} 32. b4 {[%emt 0:00:46]} Rxa2 {[%emt 0:00:36]} 33. g4 {[%emt 0:00:34]} Re2 {[%emt 0:00:59]} 34. Bf2 {[%emt 0:01:04]} Rb2 {[%emt 0:00:03]} 35. Be1 a5 0-1

[Event "CZE-ch Youth B16 2022"]
[Site "Luhacovice"]
[Date "2022.03.14"]
[Round "3.4"]
[White "Le, Anh Dung"]
[Black "Janous, Marek"]
[Result "1-0"]
[ECO "B12"]
[WhiteElo "1998"]
[BlackElo "2056"]
[Annotator "ChessBase"]
[PlyCount "89"]
[EventDate "2022.03.12"]
[EventType "swiss"]
[EventCountry "CZE"]
[SourceTitle "playchess.com"]
[Source "ChessBase"]
[SourceQuality "1"]
[TimeControl "40/5400+30:1800+30"]

1. e4 {[%emt 0:00:02]} c6 {[%emt 0:00:21]} 2. d4 {[%emt 0:00:21]} d5 {[%emt 0:00:06]} 3. e5 {[%emt 0:00:05]} c5 {[%emt 0:00:31]} 4. dxc5 {[%emt 0:00:06]} e6 {[%emt 0:00:12]} 5. Bd3 {[%emt 0:00:14]} Nd7 6. Nf3 Nxc5 {[%emt 0:04:26]} 7. O-O {[%emt 0:08:14]} Ne7 {[%emt 0:07:08]} 8. Nc3 {[%emt 0:10:03]} Nxd3 {[%emt 0:17:58]} 9. cxd3 {[%emt 0:01:40]} Ng6 {[%emt 0:00:58]} 10. Be3 {[%emt 0:01:32]} Be7 {[%emt 0:00:36]} 11. h4 O-O 12. h5 {[%emt 0:11:34]} Nh4 {[%emt 0:10:05]} 13. Nxh4 {[%emt 0:00:48]} Bxh4 {[%emt 0:00:20]} 14. h6 {[%emt 0:03:14]} g6 {[%emt 0:03:35]} 15. Ne2 {[%emt 0:10:34]} Bg5 {[%emt 0:21:07]} 16. Qd2 {[%emt 0:01:17]} Bxe3 {[%emt 0:00:22]} 17. Qxe3 {[%emt 0:00:26]} f6 {[%emt 0:01:25]} 18. Rac1 {[%emt 0:05:51]} Bd7 {[%emt 0:03:33]} 19. Nd4 {[%emt 0:02:47]} f5 20. f4 {[%emt 0:05:25]} Qb6 {[%emt 0:03:52]} 21. Rc2 {[%emt 0:05:07]} Rac8 {[%emt 0:01:06]} 22. Rfc1 {[%emt 0:00:42]} Rxc2 {[%emt 0:00:23]} 23. Rxc2 {[%emt 0:00:05]} Rc8 {[%emt 0:01:02]} 24. Rxc8+ {[%emt 0:00:42]} Bxc8 {[%emt 0:00:06]} 25. Qf2 {[%emt 0:00:36]} Bd7 {[%emt 0:06:15]} 26. Nf3 {[%emt 0:03:29]} Qxf2+ {[%emt 0:04:57]} 27. Kxf2 {[%emt 0:00:04]} Bb5 {[%emt 0:02:10]} 28. Ke3 {[%emt 0:01:38]} b6 {[%emt 0:02:33]} 29. Ng5 {[%emt 0:00:45]} Bd7 {[%emt 0:00:23]} 30. Kd4 {[%emt 0:00:25]} Bc8 {[%emt 0:01:38]} 31. b4 {[%emt 0:01:47]} Bd7 {[%emt 0:00:26]} 32. a3 {[%emt 0:02:27]} Bc8 {[%emt 0:00:29]} 33. b5 {[%emt 0:02:25]} Bd7 {[%emt 0:00:23]} 34. a4 {[%emt 0:00:30]} Bc8 {[%emt 0:00:27]} 35. Kc3 {[%emt 0:00:16]} Bd7 {[%emt 0:00:06]} 36. Kb4 {[%emt 0:01:06]} Bc8 {[%emt 0:02:59]} 37. a5 {[%emt 0:09:35]} Bd7 38. Ka4 {[%emt 0:00:57]} Bc8 {[%emt 0:00:56]} 39. Nf3 {[%emt 0:01:33]} Kf8 {[%emt 0:06:33]} 40. Nd4 {[%emt 0:03:01]} Bd7 {[%emt 0:00:00]} 41. Nc6 {[%emt 0:00:00]} bxa5 42. Kxa5 Bxc6 {[%emt 0:18:53]} 43. bxc6 {[%emt 0:00:43]} Ke7 {[%emt 0:00:02]} 44. Ka6 {[%emt 0:00:14]} Kd8 {[%emt 0:00:16]} 45. Kb7 {[%emt 0:00:05]} 1-0

[Event "CZE-ch Youth B16 2022"]
[Site "Luhacovice"]
[Date "2022.03.14"]
[Round "3.5"]
[White "Winter, Ondrej"]
[Black "Dolensky, Filip"]
[Result "0-1"]
[ECO "B40"]
[WhiteElo "2147"]
[BlackElo "2021"]
[Annotator "ChessBase"]
[PlyCount "64"]
[EventDate "2022.03.12"]
[EventType "swiss"]
[EventCountry "CZE"]
[SourceTitle "playchess.com"]
[Source "ChessBase"]
[SourceQuality "1"]
[TimeControl "40/5400+30:1800+30"]

1. e4 {[%emt 0:00:02]} c5 {[%emt 0:00:05]} 2. Nf3 {[%emt 0:00:04]} e6 {[%emt 0:00:33]} 3. d4 {[%emt 0:09:29]} cxd4 {[%emt 0:01:06]} 4. Nxd4 {[%emt 0:00:01]} Nf6 {[%emt 0:01:05]} 5. Nc3 {[%emt 0:02:11]} Nc6 {[%emt 0:02:15]} 6. Ndb5 {[%emt 0:04:40]} Bb4 {[%emt 0:01:48]} 7. a3 {[%emt 0:00:10]} Bxc3+ {[%emt 0:00:18]} 8. Nxc3 {[%emt 0:00:02]} d5 {[%emt 0:00:54]} 9. exd5 {[%emt 0:00:19]} exd5 {[%emt 0:00:07]} 10. Bd3 {[%emt 0:00:04]} O-O {[%emt 0:01:35]} 11. O-O {[%emt 0:01:37]} d4 {[%emt 0:00:05]} 12. Ne2 {[%emt 0:01:03]} Bg4 {[%emt 0:00:58]} 13. f3 {[%emt 0:02:20]} Bh5 {[%emt 0:00:40]} 14. Bg5 {[%emt 0:09:52]} Qd6 {[%emt 0:03:23]} 15. Ng3 {[%emt 0:14:32]} Bg6 {[%emt 0:00:47]} 16. Bxg6 {[%emt 0:04:00]} hxg6 {[%emt 0:00:38]} 17. Bxf6 {[%emt 0:02:40]} Qxf6 {[%emt 0:01:35]} 18. Ne4 {[%emt 0:03:04]} Qd8 {[%emt 0:01:58]} 19. Kh1 {[%emt 0:06:52]} Qb6 {[%emt 0:00:58]} 20. b3 {[%emt 0:00:50]} Rfd8 {[%emt 0:00:53]} 21. f4 {[%emt 0:17:33]} Ne7 {[%emt 0:12:38]} 22. Qd3 {[%emt 0:08:37]} Nf5 {[%emt 0:01:53]} 23. Rf2 {[%emt 0:05:32]} Rac8 {[%emt 0:01:52]} 24. Re1 {[%emt 0:01:59]} Qc6 {[%emt 0:09:52]} 25. Rfe2 {[%emt 0:00:59]} Ne3 {[%emt 0:05:24]} 26. c4 {[%emt 0:02:08]} Qc7 {[%emt 0:02:31]} 27. Rf2 {[%emt 0:00:45]} Re8 {[%emt 0:03:07]} 28. Qxd4 {[%emt 0:01:57]} Ng4 {[%emt 0:01:19]} 29. Rfe2 {[%emt 0:00:37]} Rcd8 {[%emt 0:01:24]} 30. Qa1 {[%emt 0:00:57]} Qxf4 {[%emt 0:00:35]} 31. g3 {[%emt 0:00:31]} Qf3+ {[%emt 0:00:07]} 32. Kg1 {[%emt 0:00:01]} Rxe4 {[%emt 0:00:16]} 0-1

[Event "CZE-ch Youth B16 2022"]
[Site "Luhacovice"]
[Date "2022.03.14"]
[Round "3.6"]
[White "Vaclavik, Jan"]
[Black "Vilimek, Vit"]
[Result "0-1"]
[ECO "C06"]
[WhiteElo "1997"]
[BlackElo "1794"]
[Annotator "ChessBase"]
[PlyCount "78"]
[EventDate "2022.03.12"]
[EventType "swiss"]
[EventCountry "CZE"]
[SourceTitle "playchess.com"]
[Source "ChessBase"]
[SourceQuality "1"]
[TimeControl "40/5400+30:1800+30"]

1. e4 e6 {[%emt 0:00:01]} 2. d4 {[%emt 0:06:27]} d5 {[%emt 0:00:02]} 3. Nd2 {[%emt 0:03:48]} Nf6 {[%emt 0:00:53]} 4. e5 {[%emt 0:00:21]} Nfd7 {[%emt 0:00:07]} 5. Bd3 {[%emt 0:00:48]} c5 {[%emt 0:00:58]} 6. c3 {[%emt 0:00:48]} Nc6 {[%emt 0:00:10]} 7. Ne2 {[%emt 0:04:47]} cxd4 {[%emt 0:01:17]} 8. cxd4 {[%emt 0:00:23]} f6 {[%emt 0:05:59]} 9. exf6 {[%emt 0:06:25]} Qxf6 {[%emt 0:00:13]} 10. Nf3 {[%emt 0:04:15]} h6 {[%emt 0:00:12]} 11. O-O {[%emt 0:14:48]} Bd6 {[%emt 0:01:05]} 12. Be3 {[%emt 0:01:15]} O-O {[%emt 0:06:21]} 13. Nc3 {[%emt 0:03:41]} a6 {[%emt 0:01:56]} 14. a3 {[%emt 0:03:09]} Ne7 {[%emt 0:17:32]} 15. Qb3 {[%emt 0:02:50]} g5 {[%emt 0:06:12]} 16. Rae1 {[%emt 0:08:44]} g4 {[%emt 0:01:45]} 17. Nd2 {[%emt 0:00:54]} Qh4 {[%emt 0:10:34]} 18. g3 {[%emt 0:02:44]} Qh3 {[%emt 0:14:24]} 19. Be4 {[%emt 0:03:03]} Nf6 {[%emt 0:14:12]} 20. Bg2 {[%emt 0:01:14]} Qh5 {[%emt 0:00:03]} 21. Ne2 {[%emt 0:07:42]} Ng6 {[%emt 0:01:47]} 22. Qb6 {[%emt 0:02:32]} Bb8 {[%emt 0:03:04]} 23. Rc1 {[%emt 0:00:58]} Bd7 {[%emt 0:04:16]} 24. Rfe1 {[%emt 0:05:25]} Nh7 {[%emt 0:03:16]} 25. Nf1 {[%emt 0:08:53]} Ng5 {[%emt 0:03:24]} 26. Bxg5 {[%emt 0:03:10]} Qxg5 {[%emt 0:00:24]} 27. Ne3 {[%emt 0:00:58]} h5 {[%emt 0:02:05]} 28. Rc3 {[%emt 0:01:21]} Qf6 {[%emt 0:00:43]} 29. Nd1 {[%emt 0:00:37]} Bc6 {[%emt 0:01:20]} 30. Re3 {[%emt 0:00:15]} e5 {[%emt 0:00:41]} 31. Nec3 e4 {[%emt 0:00:30]} 32. Qb3 {[%emt 0:03:01]} Qf7 {[%emt 0:00:27]} 33. Bxe4 {[%emt 0:01:12]} dxe4 {[%emt 0:00:24]} 34. d5 {[%emt 0:00:01]} Ba7 {[%emt 0:00:24]} 35. R3e2 {[%emt 0:00:23]} Ne5 {[%emt 0:00:36]} 36. Nxe4 {[%emt 0:00:55]} Nf3+ {[%emt 0:00:34]} 37. Kf1 {[%emt 0:00:14]} Qxd5 {[%emt 0:00:33]} 38. Qc3 {[%emt 0:00:51]} Qd4 {[%emt 0:00:28]} 39. Qb3+ {[%emt 0:00:29]} Bd5 {[%emt 0:00:29]} 0-1

[Event "CZE-ch Youth B16 2022"]
[Site "Luhacovice"]
[Date "2022.03.14"]
[Round "3.7"]
[White "Mametev, Artem"]
[Black "Dedek, Jan"]
[Result "1/2-1/2"]
[ECO "B10"]
[WhiteElo "1848"]
[BlackElo "1963"]
[Annotator "ChessBase"]
[PlyCount "92"]
[EventDate "2022.03.12"]
[EventType "swiss"]
[EventCountry "CZE"]
[SourceTitle "playchess.com"]
[Source "ChessBase"]
[SourceQuality "1"]
[TimeControl "40/5400+30:1800+30"]

1. e4 {[%emt 0:00:01]} c6 {[%emt 0:00:41]} 2. Nc3 {[%emt 0:00:06]} d5 {[%emt 0:00:08]} 3. Nf3 {[%emt 0:00:03]} dxe4 {[%emt 0:00:58]} 4. Nxe4 {[%emt 0:01:57]} Nd7 {[%emt 0:00:24]} 5. d4 {[%emt 0:04:54]} Ngf6 {[%emt 0:00:19]} 6. Nxf6+ {[%emt 0:00:31]} Nxf6 {[%emt 0:00:09]} 7. Bc4 {[%emt 0:00:25]} e6 {[%emt 0:03:38]} 8. O-O {[%emt 0:01:04]} Bd6 {[%emt 0:00:32]} 9. Qe2 {[%emt 0:03:09]} O-O {[%emt 0:07:45]} 10. Bg5 {[%emt 0:02:42]} Be7 {[%emt 0:03:14]} 11. Rad1 {[%emt 0:03:23]} Nd5 {[%emt 0:01:00]} 12. Bxe7 {[%emt 0:01:59]} Qxe7 {[%emt 0:01:37]} 13. Bb3 {[%emt 0:01:14]} Qf6 {[%emt 0:19:39]} 14. c4 {[%emt 0:02:28]} Ne7 {[%emt 0:02:01]} 15. Bc2 {[%emt 0:08:08]} b6 {[%emt 0:04:43]} 16. Qe4 {[%emt 0:02:42]} Qg6 {[%emt 0:01:15]} 17. Qe2 {[%emt 0:04:39]} Qf6 {[%emt 0:01:03]} 18. Qe4 {[%emt 0:01:01]} Qg6 {[%emt 0:00:24]} 19. Qe2 {[%emt 0:00:01]} Qf6 {[%emt 0:01:19]} 20. Ne5 {[%emt 0:00:31]} Rd8 {[%emt 0:12:38]} 21. f4 {[%emt 0:23:31]} g6 {[%emt 0:08:13]} 22. Ng4 {[%emt 0:02:01]} Qg7 {[%emt 0:00:28]} 23. Qe5 {[%emt 0:00:52]} Ba6 {[%emt 0:07:03]} 24. b3 {[%emt 0:03:28]} Rac8 {[%emt 0:02:45]} 25. Nf6+ {[%emt 0:02:13]} Kf8 {[%emt 0:00:23]} 26. Rf3 {[%emt 0:00:39]} Ng8 {[%emt 0:02:36]} 27. Ne4 {[%emt 0:01:52]} Rd7 {[%emt 0:01:36]} 28. Qxg7+ {[%emt 0:01:56]} Kxg7 {[%emt 0:00:05]} 29. Rfd3 {[%emt 0:02:41]} Rcd8 {[%emt 0:00:51]} 30. R3d2 {[%emt 0:00:52]} Nf6 {[%emt 0:00:35]} 31. Nxf6 {[%emt 0:00:04]} Kxf6 {[%emt 0:00:08]} 32. Be4 {[%emt 0:00:54]} Bb7 {[%emt 0:01:12]} 33. Kf2 {[%emt 0:00:38]} h5 {[%emt 0:02:03]} 34. Ke3 {[%emt 0:01:42]} Ke7 {[%emt 0:00:11]} 35. c5 {[%emt 0:00:46]} Kf6 {[%emt 0:02:33]} 36. b4 {[%emt 0:00:44]} Rc8 {[%emt 0:02:10]} 37. h4 {[%emt 0:01:39]} Ke7 {[%emt 0:00:26]} 38. a4 {[%emt 0:01:08]} Ba6 {[%emt 0:02:28]} 39. Bxc6 {[%emt 0:03:47]} Rxc6 {[%emt 0:00:17]} 40. b5 {[%emt 0:00:02]} Rcc7 {[%emt 0:00:33]} 41. bxa6 {[%emt 0:30:05]} bxc5 {[%emt 0:31:14]} 42. dxc5 {[%emt 0:00:04]} Rxd2 {[%emt 0:00:06]} 43. Rxd2 {[%emt 0:00:06]} Rxc5 {[%emt 0:00:03]} 44. Rb2 {[%emt 0:00:05]} Ra5 {[%emt 0:00:06]} 45. Rb7+ {[%emt 0:00:07]} Kf6 {[%emt 0:00:04]} 46. Rxa7 {[%emt 0:00:20]} Rxa4 {[%emt 0:00:05]} 1/2-1/2